bitfinex-derivatives/quotes_ETHF0:USTF0_20250505
["timestamp","ask_amount","ask_price","bid_price","bid_amount"]
[1746442031449,3.2078,1804.0,1803.6,49.764]
[1746442031758,3.2078,1804.0,1803.6,44.764]
[1746442031960,3.2078,1804.0,1803.9,1.10865]
[1746442032158,1.10855,1804.1,1803.7,2.77194]
[1746442032361,3.2078,1804.0,1803.9,1.10865]
[1746442032750,9.05467447,1804.0,1803.6,44.764]
[1746442032956,9.05467447,1804.0,1803.9,1.10865]
[1746442033260,3.2078,1804.0,1803.9,1.10865]
[1746442033465,3.3078,1804.2,1804.1,1.10853]
[1746442033966,8.04606447,1804.2,1804.1,1.10853]
[1746442034261,3.3078,1804.2,1804.1,1.10853]
[1746442034857,0.1,1804.2,1804.1,5.17353]
[1746442036159,0.1,1804.2,1804.1,45.97353]
[1746442036360,0.1,1804.2,1804.1,54.18133]
[1746442037159,3.2078,1804.6,1804.5,1.10828]
[1746442037353,3.3078,1804.8,1804.7,1.10816]
[1746442037561,8.04606447,1804.8,1804.7,1.10816]
[1746442037761,3.3078,1804.8,1804.7,1.10816]
[1746442038065,3.3078,1804.8,1804.7,41.90816]
[1746442038269,0.1,1804.8,1804.7,46.90816]
[1746442038765,0.1,1804.8,1804.7,41.90816]
[1746442038967,4.83826447,1804.8,1804.7,41.90816]
[1746442040565,6.3659744,1804.8,1804.7,40.8]
[1746442040867,6.36600264,1804.8,1804.7,40.8]
[1746442041264,11.36600264,1804.8,1804.7,40.8]
[1746442041768,5.51963817,1804.8,1804.4,2.77084]
[1746442041970,3.62743817,1804.7,1804.6,1.10822]
[1746442042267,3.2078,1804.7,1804.6,1.10822]
[1746442042663,3.2078,1804.7,1804.6,41.90822]
[1746442042864,0.1,1804.8,1804.7,1.10816]
[1746442044071,1.62796664,1804.8,1804.7,1.10816]
[1746442044263,1.62801889,1804.8,1804.7,1.10816]
[1746442044457,0.51991889,1804.8,1804.7,1.10816]
[1746442044657,0.1,1804.8,1804.7,1.10816]
[1746442045471,1e-05,1804.8,1804.7,12.00616]
[1746442048360,1e-05,1804.8,1804.7,7.00616]
[1746442048566,1e-05,1804.8,1804.7,11.07016]
[1746442048767,1e-05,1804.8,1804.7,7.00616]
[1746442048966,1e-05,1804.8,1804.7,5.17216]
[1746442051375,1e-05,1804.8,1804.7,10.17216]
[1746442051669,1e-05,1804.8,1804.7,5.17216]
[1746442051973,1e-05,1804.8,1804.7,1.10816]
[1746442052170,1e-05,1804.8,1804.7,5.17216]
[1746442054066,18.23240485,1804.8,1803.9,3.2078]
[1746442054265,18.23240485,1804.8,1804.1,1.1085]
[1746442054266,1.10848,1804.2,1804.1,1.1085]
[1746442054574,1.52858792,1804.2,1804.1,41.9085]
[1746442054767,1.52858792,1804.2,1804.1,40.8]
[1746442055573,3.16128792,1804.2,1804.1,40.8]
[1746442056267,3.16451501,1804.2,1804.1,40.8]
[1746442056973,3.16451501,1804.2,1804.1,41.90853]
[1746442057872,6.37231501,1804.2,1804.1,41.90853]
[1746442058265,6.37231501,1804.2,1804.1,40.8]
[1746442058572,6.37231501,1804.2,1804.1,41.90853]
[1746442058970,5.26385501,1804.2,1804.1,41.90853]
[1746442059369,2.05605501,1804.2,1804.1,41.90853]
[1746442059570,1.6327,1804.2,1804.1,41.90853]
[1746442060269,2.74116,1804.2,1804.1,41.90853]
[1746442060877,3.1647238,1804.2,1804.1,41.90853]
[1746442061272,3.1647238,1804.2,1804.1,40.8]
[1746442061476,6.37195034,1804.2,1804.1,41.90853]
[1746442061775,5.26349034,1804.2,1804.1,41.90853]
[1746442061966,6.37195034,1804.2,1804.1,41.90853]
[1746442062172,1.10877,1803.7,1803.6,1.1925]
[1746442062380,4.73956034,1803.7,1803.6,1.1925]
[1746442062581,9.73956034,1803.7,1803.6,41.9925]
[1746442062770,11.41726034,1803.7,1803.6,41.9925]
[1746442063167,11.41747202,1803.7,1803.6,41.9925]
[1746442065478,11.41903672,1803.7,1803.6,1.1925]
[1746442065879,11.41903672,1803.7,1803.6,41.9925]
[1746442066379,6.41903672,1803.7,1803.6,41.9925]
[1746442066575,6.41863664,1803.7,1803.6,41.9925]
[1746442068471,1.1092,1803.1,1802.7,2.77346]
[1746442068676,8.0798,1803.0,1802.9,1.10926]
[1746442069084,8.0798,1803.0,1802.9,6.10926]
[1746442069384,4.872,1803.0,1802.9,6.10926]
[1746442069580,4.872,1803.0,1802.9,41.90926]
[1746442070576,4.872,1803.0,1802.9,46.90926]
[1746442071884,3.75882,1803.0,1802.9,46.90926]
[1746442072386,3.2078,1803.7,1803.6,1.10883]
[1746442072587,1.10863,1804.0,1803.9,1.10864]
[1746442072788,3.2078,1804.0,1803.9,1.10864]
[1746442072985,6.78706224,1804.1,1804.0,1.10859]
[1746442073489,6.78706224,1804.1,1804.0,41.90859]
[1746442075090,7.89559224,1804.1,1804.0,41.90859]
[1746442075392,2.77148,1804.0,1803.1,9.1058]
[1746442075592,3.2078,1803.5,1803.4,1.10896]
[1746442075793,1.10879,1803.7,1803.6,1.1088]
[1746442075985,4.31659,1803.7,1803.6,1.1088]
[1746442076485,4.31659,1803.7,1803.6,41.9088]
[1746442076791,3.2078,1803.7,1803.6,41.9088]
[1746442077388,4.31657,1803.7,1803.6,41.9088]
[1746442078285,4.31657,1803.7,1803.6,40.8]
[1746442078490,4.31657,1803.7,1803.6,41.90883]
[1746442079483,4.31657,1803.7,1803.6,40.8]
[1746442079792,4.31657,1803.7,1803.6,41.90883]
[1746442080387,4.73735829,1803.7,1803.6,40.8]
[1746442080595,4.73735837,1803.7,1803.6,40.8]
[1746442081183,1.10883,1803.6,1803.2,2.77269]
[1746442081388,1.10917,1803.1,1803.0,1.10914]
[1746442081592,4.31697,1803.1,1803.0,1.10914]
[1746442081797,4.73779933,1803.1,1803.0,41.90914]
[1746442082091,4.73779933,1803.1,1803.0,40.8]
[1746442082092,6.44099933,1803.1,1803.0,40.8]
[1746442083385,6.02017,1803.1,1803.0,41.9092]
[1746442083699,3.63077388,1803.1,1803.0,41.9092]
[1746442083888,3.2078,1803.1,1803.0,41.9092]
[1746442084401,0.1,1803.2,1803.1,1.10914]
[1746442084692,0.1,1803.2,1803.1,2.68744]
[1746442084894,0.1,1803.2,1803.1,10.89524]
[1746442085090,0.1,1803.2,1803.1,7.68744]
[1746442085293,1.20908,1803.2,1803.1,2.68744]
[1746442085687,1.20908,1803.2,1803.0,40.8]
[1746442085688,1.10914,1803.1,1803.0,41.90919]
[1746442085895,4.7389448,1803.1,1803.0,41.90919]
[1746442086093,6.4352448,1803.1,1803.0,41.90919]
[1746442087001,6.43528757,1803.1,1803.0,41.90919]
[1746442087993,11.43528757,1803.1,1803.0,40.8]
[1746442088699,11.43568446,1803.1,1803.0,40.8]
[1746442089695,6.43568446,1803.1,1803.0,40.8]
[1746442089896,6.43568446,1803.1,1803.0,41.9092]
[1746442090200,6.42414559,1803.1,1803.0,41.9092]
[1746442090398,5.32744662,1803.1,1803.0,41.9092]
[1746442090589,4.9041,1803.1,1803.0,41.9092]
[1746442091194,6.01324,1803.1,1803.0,41.9092]
[1746442092002,4.9041,1803.1,1803.0,41.9092]
[1746442092197,0.1,1803.2,1803.1,1.10914]
[1746442092395,1.10894,1803.5,1803.4,1.10896]
[1746442092396,3.2078,1803.5,1803.4,1.10896]
[1746442092995,4.31669,1803.5,1803.4,1.10896]
[1746442093192,1.10896,1803.4,1803.3,2.73797]
[1746442093397,2.69366,1803.4,1803.3,1.10897]
[1746442093599,1.10905,1803.3,1803.2,1.10903]
[1746442093802,4.7925,1803.3,1803.2,2.73803]
[1746442094298,4.7925,1803.3,1803.0,40.8]
[1746442094508,4.31694,1803.1,1803.0,40.8]
[1746442095304,4.31694,1803.1,1803.0,41.9092]
[1746442095506,4.31694,1803.1,1803.0,40.8]
[1746442095904,4.31694,1803.1,1803.0,41.9092]
[1746442096099,4.31694,1803.1,1803.0,40.8]
[1746442097002,4.31694,1803.1,1803.0,41.9092]
[1746442097199,4.31694,1803.1,1803.0,40.8]
[1746442097698,9.31694,1803.1,1803.0,40.8]
[1746442099107,4.31694,1803.1,1803.0,40.8]
[1746442100405,9.31694,1803.1,1803.0,40.8]
[1746442100605,4.31694,1803.1,1803.0,40.8]
[1746442102305,6.02164,1803.1,1803.0,40.8]
[1746442102496,4.9125,1803.1,1803.0,40.8]
[1746442102701,4.9125,1803.1,1803.0,46.9092]
[1746442102702,3.2078,1803.1,1803.0,46.9092]
[1746442103201,3.2078,1803.1,1803.0,48.5482]
[1746442103396,3.2078,1803.1,1803.0,50.1795]
[1746442104004,3.2078,1803.3,1803.2,1.10908]
[1746442104309,4.31682,1803.3,1803.2,1.10908]
[1746442104703,3.2078,1803.3,1803.2,1.10908]
[1746442106200,3.2078,1803.3,1803.2,6.10908]
[1746442106401,3.57926224,1803.4,1803.3,1.10902]
[1746442106605,4.68822224,1803.4,1803.3,2.80352]
[1746442106806,1.10896,1803.4,1803.3,2.80352]
[1746442107021,4.31675,1803.5,1803.4,1.10896]
[1746442107313,4.31675,1803.5,1803.4,2.80346]
[1746442107513,1.10886,1803.6,1803.5,1.10889]
[1746442108012,4.8955,1803.7,1803.6,1.10883]
[1746442108213,4.68797224,1803.8,1803.7,1.10877]
[1746442108713,6.37567224,1803.8,1803.7,41.90877]
[1746442109115,6.37567224,1803.8,1803.7,40.8]
[1746442109912,6.37567224,1803.8,1803.7,43.56717]
[1746442110512,6.37567224,1803.8,1803.7,40.8]
[1746442111216,2.79641,1803.8,1803.7,40.8]
[1746442111814,2.79641,1803.8,1803.7,41.90877]
[1746442112113,2.79641,1803.8,1803.7,40.8]
[1746442112314,2.79641,1803.8,1803.7,41.90877]
[1746442113810,2.79641,1803.8,1803.7,40.8]
[1746442120322,2.77228,1803.5,1803.2,1.10903]
[1746442120522,1.10908,1803.3,1803.2,1.10903]
[1746442120725,1.10914,1803.1,1803.0,2.74819]
[1746442121022,1.10914,1803.1,1803.0,4.44989]
[1746442121409,1.10914,1803.1,1803.0,45.24989]
[1746442121615,2.82664,1803.1,1803.0,45.24989]
[1746442121914,2.82664,1803.1,1803.0,40.8]
[1746442122621,4.34894,1803.1,1803.0,40.8]
[1746442122915,5.54603,1803.0,1802.4,9.67735637]
[1746442123112,5.54603,1803.0,1802.4,5.81853637]
[1746442123113,4.31731,1802.5,1802.4,5.81853637]
[1746442123319,14.30531,1802.5,1802.4,4.48362637]
[1746442123518,24.10951,1802.5,1802.4,4.48362637]
[1746442123721,24.10951,1802.5,1802.4,2.04671637]
[1746442124222,24.5252071,1802.5,1802.4,2.04671637]
[1746442124620,19.5252071,1802.5,1802.4,2.04671637]
[1746442125025,6.45043033,1802.5,1802.4,2.04671637]
[1746442125221,4.73293033,1802.5,1802.4,8.67881637]
[1746442125419,4.31731,1802.5,1802.4,10.19001637]
[1746442125620,4.31731,1802.5,1802.4,45.99001637]
[1746442125818,4.73261865,1802.5,1802.4,45.99001637]
[1746442126015,6.40601865,1802.5,1802.4,40.8]
[1746442126221,6.40731729,1802.5,1802.4,40.8]
[1746442126825,10.57231729,1802.5,1802.4,40.8]
[1746442127126,10.5723587,1802.5,1802.4,40.8]
[1746442127325,12.1439587,1802.5,1802.4,40.8]
[1746442127832,17.9679587,1802.5,1802.4,40.8]
[1746442128124,17.9679587,1802.5,1802.3,0.01384281]
[1746442128125,1.10957,1802.4,1802.3,0.01384281]
[1746442128428,3.1236187,1802.4,1802.3,0.01384281]
[1746442128920,3.12403755,1802.4,1802.3,40.81384281]
[1746442129827,7.29003755,1802.4,1802.3,40.81384281]
[1746442130621,7.28932337,1802.4,1802.3,40.81384281]
[1746442132319,7.2888407,1802.4,1802.3,40.81384281]
[1746442133124,7.2888407,1802.4,1802.3,0.01384281]
[1746442133723,17.1032707,1802.4,1801.1,3.2078]
[1746442133917,3.2078,1801.4,1801.0,4.42077]
[1746442134118,4.166,1801.7,1801.2,5.98355]
[1746442134317,1.10999,1801.8,1801.6,1.11006]
[1746442134624,3.2078,1801.9,1801.8,1.10994]
[1746442134922,0.1,1802.0,1801.9,1.10988]
[1746442135226,0.1,1802.0,1801.9,1.7061]
[1746442135429,0.1,1802.0,1800.9,3.2078]
[1746442135619,1.20982,1802.0,1801.9,40.8]
[1746442135818,4.41762,1802.0,1801.9,40.8]
[1746442136428,4.41762,1802.0,1801.9,42.5061]
[1746442139530,3.3078,1802.0,1801.9,43.61598]
[1746442139732,4.41762,1802.0,1801.9,48.61598]
[1746442140028,4.41762,1802.0,1801.9,42.5061]
[1746442142435,4.83537093,1802.0,1801.9,40.8]
[1746442142730,4.83536353,1802.0,1801.9,40.8]
[1746442143329,1.11019,1801.4,1801.3,2.79532]
[1746442143527,3.2078,1801.5,1801.3,3.2783]
[1746442143734,4.31793,1801.5,1801.4,42.3932]
[1746442145236,1.11003,1801.7,1801.6,1.11006]
[1746442145440,5.824,1801.8,1801.4,48.37646]
[1746442145640,1.11008,1801.6,1801.4,4.801]
[1746442145937,1.11046,1801.0,1800.8,1.11052]
[1746442146133,1.11046,1801.0,1800.6,2.77665]
[1746442146134,3.2078,1801.0,1800.9,44.1048]
[1746442146333,4.31823,1801.0,1800.9,44.1048]
[1746442146534,4.31823,1801.0,1800.9,40.8]
[1746442146734,3.2078,1801.2,1800.9,45.8]
[1746442147044,3.2078,1801.4,1801.0,1.6483]
[1746442147239,5.9833,1801.4,1801.0,2.75868]
[1746442147540,1.11037,1801.1,1801.0,2.75868]
[1746442147741,3.2078,1801.2,1801.1,1.11037]
[1746442148135,4.31811,1801.2,1801.1,5.0]
[1746442148337,1.11037,1801.1,1801.0,1.6483]
[1746442148530,3.2078,1801.2,1800.0,7.81980995]
[1746442148737,3.2078,1800.8,1800.2,2.77733]
[1746442149040,5.98425,1800.8,1800.4,1.11077]
[1746442149242,1.11074,1800.6,1800.5,2.73364]
[1746442149438,1.11068,1800.6,1800.5,1.6229]
[1746442149642,3.2078,1800.8,1800.5,1.6229]
[1746442149831,3.2078,1800.8,1800.7,1.11062]
[1746442150036,5.98375,1801.1,1800.6,1.6539]
[1746442150235,1.11057,1800.8,1800.7,2.73348]
[1746442150433,1.11055,1800.9,1800.7,2.73348]
[1746442150635,1.11056,1800.8,1800.7,2.73348]
[1746442151147,1.11048,1801.0,1800.9,1.1105]
[1746442151347,5.99893,1801.3,1800.7,6.6229]
[1746442151348,3.2078,1801.3,1800.7,6.6229]
[1746442151639,4.31807,1801.3,1801.2,1.1103]
[1746442151845,4.31807,1801.3,1801.1,1.11033]
[1746442152047,4.31807,1801.3,1801.2,43.49101]
[1746442152240,4.73678462,1801.3,1801.2,42.3807]
[1746442152441,4.73678462,1801.3,1801.2,40.8]
[1746442153249,9.73678462,1801.3,1801.2,40.8]
[1746442153451,11.44618462,1801.3,1801.2,40.8]
[1746442153741,1.11049,1801.0,1800.8,1.11056]
[1746442153947,4.31829,1801.0,1800.7,1.5807]
[1746442154250,4.31829,1801.0,1800.9,1.1105]
[1746442154446,3.2078,1801.4,1800.9,1.1105]
[1746442154643,0.41755624,1801.3,1801.2,1.11031]
[1746442154951,4.31803,1801.4,1801.3,1.11025]
[1746442155149,4.7355481,1801.4,1801.3,2.81675]
[1746442155351,4.73564415,1801.4,1801.3,1.7065]
[1746442155651,4.73564415,1801.4,1801.3,2.81675]
[1746442156046,3.62541415,1801.4,1801.3,2.81675]
[1746442156451,3.2078,1801.4,1801.3,2.81675]
[1746442157948,3.62438352,1801.4,1801.3,2.81675]
[1746442158948,4.73471425,1801.4,1801.3,2.81675]
[1746442159643,4.73471425,1801.4,1801.3,1.7065]
[1746442160551,4.75038416,1801.4,1801.3,1.7065]
[1746442160746,1.11025,1801.3,1801.2,40.8]
[1746442160951,3.22254416,1801.3,1801.2,40.8]
[1746442161547,8.22254416,1801.3,1801.2,40.8]
[1746442162149,8.22411703,1801.3,1801.2,40.8]
[1746442162549,3.22411703,1801.3,1801.2,40.8]
[1746442163850,3.2238291,1801.3,1801.2,40.8]
[1746442164344,2.77602,1801.1,1800.2,4.269]
[1746442164543,1.11056,1800.8,1800.7,1.11056]
[1746442164748,1.5442391,1800.8,1800.7,41.91056]
[1746442164948,3.1143391,1800.8,1800.7,41.91056]
[1746442165350,7.0037791,1800.8,1800.3,3.2078]
[1746442165551,3.2078,1800.4,1799.9,7.68229]
[1746442165752,0.4336791,1800.3,1800.2,1.11092]
[1746442166057,5.88861,1800.6,1800.2,40.8]
[1746442166355,0.42655445,1800.5,1800.4,1.1108]
[1746442166752,1.53729445,1800.5,1800.4,1.1108]
[1746442167055,1.53729445,1800.5,1800.3,1.11083]
[1746442167258,1.53735445,1800.4,1800.3,1.6181]
[1746442167456,1.53735445,1800.4,1800.2,40.8]
[1746442167457,3.63435445,1800.4,1799.3,3.2078]
[1746442167753,4.3191,1799.6,1799.2,15.74977573]
[1746442167954,4.74565445,1799.6,1799.5,48.17606813]
[1746442168655,9.74565445,1799.6,1799.5,48.17606813]
[1746442168852,9.74565445,1799.6,1799.5,7.37606813]
[1746442169053,4.74565445,1799.6,1799.5,7.37606813]
[1746442169255,4.73931676,1799.6,1799.5,48.17606813]
[1746442169553,9.73931676,1799.6,1799.5,7.37606813]
[1746442169861,1.11148,1799.3,1799.2,2.16555813]
[1746442170156,4.74583445,1799.3,1799.2,42.96555813]
[1746442170760,4.76799843,1799.3,1799.2,42.96555813]
[1746442171260,4.76799843,1799.3,1799.2,2.16555813]
[1746442171461,3.65651843,1799.3,1799.2,2.16555813]
[1746442171658,6.00327,1799.5,1799.3,1.11146]
[1746442171954,1.6841,1799.5,1799.2,2.16555813]
[1746442172165,4.8919,1799.5,1799.2,2.16555813]
[1746442172455,4.8919,1799.5,1799.4,1.11142]
[1746442172652,3.2078,1799.5,1799.4,1.11142]
[1746442173157,3.2078,1799.5,1799.3,1.5774]
[1746442173353,3.2078,1799.5,1799.4,1.11142]
[1746442173863,1.6496,1799.9,1799.6,1.11127]
[1746442174159,4.31904,1799.7,1799.6,1.11127]
[1746442174860,4.31904,1799.7,1799.5,1.11131]
[1746442175061,4.31904,1799.7,1799.6,1.1113]
[1746442175254,3.2078,1799.7,1799.6,41.9113]
[1746442176062,1.6496,1799.9,1799.6,41.9113]
[1746442176063,5.96855,1799.9,1799.6,40.8]
[1746442176259,0.1,1800.0,1799.9,1.11111]
[1746442177768,0.1,1800.0,1799.9,6.11111]
[1746442178152,0.1,1800.0,1799.9,9.31891]
[1746442178356,3.2078,1800.3,1800.2,1.11093]
[1746442179258,0.11108642,1800.4,1800.3,1.11087]
[1746442179462,3.31888642,1800.4,1800.3,1.11087]
[1746442179862,4.42968642,1800.4,1800.3,1.11087]
[1746442180360,3.31888642,1800.4,1800.3,1.11087]
[1746442180758,3.31888642,1800.4,1800.3,41.91087]
[1746442181658,4.42968642,1800.4,1800.3,41.91087]
[1746442181859,3.31888642,1800.4,1800.3,41.91087]
[1746442182058,0.11108642,1800.4,1800.3,41.91087]
[1746442182260,0.11108642,1800.4,1800.3,43.43437]
[1746442183057,3.2078,1800.8,1800.7,1.11062]
[1746442183360,1.11051,1800.9,1800.8,1.1105]
[1746442183861,1.11053,1800.9,1800.8,1.11051]
[1746442184362,1.1108,1800.4,1800.3,41.91085]
[1746442184559,4.3186,1800.4,1800.3,40.8]
[1746442185562,4.3186,1800.4,1800.3,41.91087]
[1746442185757,4.3186,1800.4,1800.3,40.8]
[1746442186259,4.3186,1800.4,1800.3,43.49927]
[1746442186657,3.2078,1800.4,1800.3,43.49927]
[1746442186962,2.85153,1800.6,1800.3,42.3884]
[1746442187162,1.11067,1800.7,1800.6,1.11064]
[1746442187562,1.11073,1800.6,1800.5,1.11069]
[1746442187968,3.2078,1800.8,1800.4,8.84198]
[1746442188167,4.31839,1800.8,1800.7,1.11062]
[1746442188366,2.70184,1800.9,1800.8,1.11056]
[1746442188569,5.90964,1800.9,1800.8,1.11056]
[1746442188762,4.31834,1800.9,1800.8,1.11056]
[1746442189664,1.11062,1800.7,1800.6,2.71292]
[1746442189866,1.11062,1800.7,1800.6,2.71293]
[1746442190070,1.11058,1800.8,1800.7,1.11058]
[1746442190873,1.11062,1800.7,1800.6,2.71294]
[1746442192772,1.11062,1800.7,1800.6,1.6023]
[1746442192973,1.11062,1800.7,1800.6,2.71298]
[1746442193169,1.11074,1800.5,1800.4,2.72386]
[1746442195476,1.1108,1800.4,1800.3,43.58454]
[1746442195772,2.7645,1800.4,1800.3,43.58454]
[1746442195962,2.7645,1800.4,1800.3,41.91087]
[1746442196165,2.7645,1800.4,1800.3,40.8]
[1746442196367,2.7645,1800.4,1800.3,41.91087]
[1746442196774,2.7645,1800.4,1800.3,40.8]
[1746442197076,3.21138298,1800.4,1800.3,40.8]
[1746442197463,8.21138298,1800.4,1800.3,40.8]
[1746442197667,9.85802525,1800.4,1800.3,40.8]
[1746442199081,4.85802525,1800.4,1800.3,40.8]
[1746442199378,4.85824069,1800.4,1800.3,40.8]
[1746442200873,1.11111,1799.9,1799.8,1.11114]
[1746442201178,1.1111,1800.0,1799.9,1.11109]
[1746442201371,1.56143083,1800.0,1799.9,41.91109]
[1746442201573,3.26343083,1800.0,1799.9,40.8]
[1746442201769,3.26343083,1800.0,1799.9,41.91111]
[1746442202067,3.2078,1800.3,1799.9,45.8]
[1746442202272,1.56153591,1800.2,1800.1,1.11096]
[1746442202578,1.11099,1800.1,1800.0,2.62691]
[1746442202772,1.11097,1800.2,1800.1,1.11095]
[1746442202973,1.56129537,1800.2,1800.1,1.11095]
[1746442203174,1.56129537,1800.2,1800.1,2.78405]
[1746442203773,0.45036537,1800.2,1800.1,2.78405]
[1746442203973,0.45037633,1800.3,1800.1,8.207]
[1746442204169,4.31851,1800.6,1800.5,1.11074]
[1746442204383,4.76898043,1800.6,1800.5,1.11074]
[1746442204583,1.1108,1800.5,1800.4,1.11076]
[1746442204881,1.56127043,1800.5,1800.4,1.11076]
[1746442205485,1.1108,1800.5,1800.4,1.11076]
[1746442206382,1.1109,1800.3,1800.2,1.11087]
[1746442206584,1.11083,1800.4,1800.3,1.11087]
[1746442207184,1.11088,1800.4,1800.3,1.11083]
[1746442207484,1.52971758,1800.4,1800.3,1.11083]
[1746442208490,0.41883758,1800.4,1800.3,1.11083]
[1746442208984,3.2078,1800.6,1800.5,1.11074]
[1746442209180,3.62647365,1800.6,1800.5,1.11074]
[1746442209685,3.2078,1800.6,1800.5,2.75084]
[1746442210581,3.2078,1800.6,1800.5,43.55084]
[1746442211284,3.57926224,1801.1,1801.0,1.11043]
[1746442211483,4.68963224,1801.1,1801.0,1.11043]
[1746442211786,6.36933224,1801.1,1801.0,1.11043]
[1746442211987,6.36933224,1801.1,1801.0,41.91043]
[1746442212183,5.25896224,1801.1,1801.0,41.91043]
[1746442212490,3.57926224,1801.1,1801.0,41.91043]
[1746442212981,5.24746224,1801.1,1801.0,41.91043]
[1746442213287,5.24746224,1801.1,1801.0,40.8]
[1746442213489,3.57926224,1801.1,1801.0,41.91043]
[1746442213689,6.47925336,1801.2,1801.1,1.11037]
[1746442213690,1.11036,1801.2,1801.1,1.11037]
[1746442213886,1.11023,1801.4,1801.3,1.1102]
[1746442214389,1.11023,1801.4,1801.3,41.9102]
[1746442215388,5.98617,1801.5,1801.4,1.11019]
[1746442215688,4.876,1801.5,1801.4,1.11019]
[1746442215887,3.2078,1801.5,1801.4,1.11019]
[1746442216090,4.8373,1801.7,1801.6,1.11006]
[1746442216293,6.37206722,1801.7,1801.6,1.11006]
[1746442216587,3.16426722,1801.7,1801.6,1.11006]
[1746442217281,2.05426722,1801.7,1801.6,1.11006]
[1746442217477,3.57926224,1801.8,1801.7,1.11]
[1746442217682,5.63227174,1801.8,1801.7,1.11]
[1746442218083,3.1629495,1801.8,1801.7,1.11]
[1746442218284,2.0530095,1801.8,1801.7,1.11]
[1746442218484,3.1629495,1801.8,1801.7,1.11]
[1746442219192,1.11004,1801.7,1801.6,1.11001]
[1746442219393,1.10999,1801.8,1801.7,1.10992]
[1746442219689,2.72422,1801.9,1801.8,1.10989]
[1746442219992,1.10998,1801.8,1801.7,1.10995]
[1746442220189,1.6143,1801.8,1801.7,1.10995]
[1746442220687,2.72424,1801.8,1801.7,1.10995]
[1746442220995,1.11006,1801.6,1801.5,2.73348]
[1746442221989,1.11006,1801.6,1801.5,1.11008]
[1746442222292,1.11003,1801.7,1801.6,1.11]
[1746442222493,2.70883,1801.7,1801.6,1.11]
[1746442223096,1.5988,1801.7,1801.6,1.11]
[1746442224186,2.7088,1801.7,1801.6,1.11]
[1746442224796,1.5988,1801.7,1801.6,1.11]
[1746442225092,2.7088,1801.7,1801.6,1.11]
[1746442225495,1.5988,1801.7,1801.6,1.11]
[1746442226086,3.2078,1801.8,1801.7,1.11]
[1746442226285,4.31774,1801.8,1801.7,1.11]
[1746442226891,3.2078,1801.8,1801.7,1.11]
[1746442227290,1.20983,1802.0,1801.9,1.10988]
[1746442228594,2.80683,1802.0,1801.9,1.10988]
[1746442228795,2.80682,1802.0,1801.9,1.10988]
[1746442230096,1.697,1802.0,1801.9,1.10988]
[1746442230499,1.697,1802.0,1801.9,2.78878]
[1746442231297,0.1,1802.0,1801.9,2.78878]
[1746442231602,1.20982,1802.0,1801.9,7.13978]
[1746442232201,1.20982,1802.0,1801.9,5.46088]
[1746442232401,1.20982,1802.0,1801.9,1.10988]
[1746442232794,1.20982,1802.0,1801.9,41.90988]
[1746442233499,0.1,1802.0,1801.9,41.90988]
[1746442233802,1.7535,1802.0,1801.9,41.90988]
[1746442234103,2.86332,1802.0,1801.9,41.90988]
[1746442234399,0.1,1802.0,1801.9,41.90988]
[1746442234598,1.20982,1802.0,1801.9,41.90988]
[1746442235001,1.63816611,1802.0,1801.9,41.90988]
[1746442236103,0.52841299,1802.0,1801.9,41.90988]
[1746442236301,0.1,1802.0,1801.9,41.90988]
[1746442236501,3.2078,1802.3,1802.2,1.10969]
[1746442236702,6.4764103,1802.3,1802.2,1.10969]
[1746442240007,5.3667803,1802.3,1802.2,1.10969]
[1746442240504,6.4764103,1802.3,1802.2,1.10969]
[1746442241407,6.4764103,1802.3,1801.9,41.90986]
[1746442241408,1.10982,1802.0,1801.9,41.90986]
[1746442241698,1.5483003,1802.0,1801.9,40.8]
[1746442242098,3.1297003,1802.0,1801.9,40.8]
[1746442242805,3.1297003,1802.0,1801.9,41.90988]
[1746442243100,2.01119068,1802.0,1801.9,41.90988]
[1746442243297,0.42979068,1802.0,1801.9,41.90988]
[1746442243494,1.53961068,1802.0,1801.9,41.90988]
[1746442243700,2.05459068,1802.0,1801.9,41.90988]
[1746442244301,2.05459068,1802.0,1801.9,43.57038]
[1746442244495,3.16441068,1802.0,1801.9,43.57038]
[1746442244704,3.16500693,1802.0,1801.9,41.90988]
[1746442245007,3.16500693,1802.0,1801.9,40.8]
[1746442245210,3.16500693,1802.0,1801.9,41.90988]
[1746442245606,3.16500693,1802.0,1801.9,40.8]
[1746442245804,3.16500693,1802.0,1801.9,41.90988]
[1746442246104,3.16433861,1802.0,1801.9,40.8]
[1746442246606,3.16442772,1802.0,1801.9,40.8]
[1746442248308,8.16442772,1802.0,1801.9,40.8]
[1746442248804,3.16442772,1802.0,1801.9,40.8]
[1746442249803,3.16474518,1802.0,1801.9,41.90988]
[1746442250409,3.16474518,1802.0,1801.9,40.8]
[1746442250605,2.73462,1802.0,1801.9,40.8]
[1746442251110,5.9819,1802.3,1801.9,40.8]
[1746442251307,1.10978,1802.1,1802.0,1.10976]
[1746442251610,4.46061,1802.3,1802.1,1.10969]
[1746442251611,1.10973,1802.2,1802.1,1.10969]
[1746442251811,2.71043,1802.2,1802.1,1.10969]
[1746442252198,1.6007,1802.2,1801.9,44.0078]
[1746442252399,1.10982,1802.0,1801.9,40.8]
[1746442252810,2.71052,1802.0,1801.9,41.90988]
[1746442253111,1.6007,1802.0,1801.9,41.90988]
[1746442253511,1.10974,1802.2,1802.1,1.10976]
[1746442254607,4.31749,1802.3,1802.2,1.10969]
[1746442255011,3.2078,1802.3,1802.2,1.10969]
[1746442256602,3.2078,1802.3,1802.2,2.81339]